fUSD/lending_fUSD_20250209
["ID","MTS","AMOUNT","RATE_DAILY","PERIOD"]
[352449840,1739111503642,-500.0,0.00013219,2]
[352449841,1739111503652,-500.0,0.00013219,2]
[352449842,1739111503661,-261.31902758,0.00013219,2]
[352449843,1739111503671,-500.0,0.00013219,2]
[352449844,1739111503680,-732.99,0.00013219,2]
[352449845,1739111503690,-682.96,0.00013219,2]
[352449846,1739111503699,-894.51,0.00013219,2]
[352449847,1739111503709,-282.23757853,0.00013219,2]
[352449848,1739111503719,-815.69,0.00013219,2]
[352449849,1739111503728,-500.0,0.00013219,2]
[352449850,1739111503738,-581.55,0.00013219,2]
[352449851,1739111503747,-1254.78,0.00013219,2]
[352449852,1739111503756,-892.24,0.00013219,2]
[352449853,1739111503766,-548.43,0.00013219,2]
[352449854,1739111503775,-500.0,0.00013219,2]
[352449855,1739111503785,-500.0,0.00013219,2]
[352449856,1739111503794,-500.0,0.00013219,2]
[352449857,1739111503804,-870.56,0.00013219,2]
[352449858,1739111503813,-702.87,0.00013219,2]
[352449859,1739111503823,-811.17,0.00013219,2]
[352449860,1739111503832,-580.57,0.00013219,2]
[352449861,1739111503842,-516.0,0.00013219,2]
[352449862,1739111503852,-500.0,0.00013219,2]
[352449863,1739111503861,-795.24,0.00013219,2]
[352449864,1739111503871,-500.0,0.00013219,2]
[352449865,1739111503881,-881.68,0.00013219,2]
[352449866,1739111503890,-670.56,0.00013219,2]
[352449867,1739111503899,-500.0,0.00013219,2]
[352449868,1739111503908,-705.66,0.00013219,2]
[352449869,1739111503918,-1023.29,0.00013219,2]
[352449870,1739111503927,-640.81,0.00013219,2]
[352449871,1739111503936,-500.0,0.00013219,2]
[352449872,1739111503946,-500.0,0.00013219,2]
[352449873,1739111503955,-500.0,0.00013219,2]
[352449874,1739111503965,-630.98,0.00013219,2]
[352449875,1739111503974,-542.86,0.00013219,2]
[352449876,1739111503984,-654.61,0.00013219,2]
[352449877,1739111503994,-521.92,0.00013219,2]
[352449878,1739111504004,-500.0,0.00013219,2]
[352449879,1739111504014,-500.0,0.00013219,2]
[352449880,1739111504023,-519.41,0.00013219,2]
[352449881,1739111504033,-542.32,0.00013219,2]
[352449882,1739111504042,-572.6,0.00013219,2]
[352449883,1739111504052,-555.28,0.00013219,2]
[352449884,1739111504062,-500.0,0.00013219,2]
[352449885,1739111504071,-500.0,0.00013219,2]
[352449886,1739111504080,-500.0,0.00013219,2]
[352449887,1739111504090,-678.37,0.00013219,2]
[352449888,1739111504099,-500.0,0.00013219,2]
[352449889,1739111504108,-500.0,0.00013219,2]
[352449890,1739111504117,-595.16,0.00013219,2]
[352449891,1739111504128,-606.91,0.00013219,2]
[352449892,1739111504138,-569.4,0.00013219,2]
[352449893,1739111504147,-760.21,0.00013219,2]
[352449894,1739111504157,-500.0,0.00013219,2]
[352449895,1739111504167,-514.96,0.00013219,2]
[352449896,1739111504177,-737.84,0.0001322,2]
[352449897,1739111504186,-434.37,0.0001322,2]
[352449898,1739111504196,-545.78,0.0001322,2]
[352449899,1739111504205,-525.16,0.0001322,2]
[352449900,1739111504215,-564.38,0.0001322,2]
[352449901,1739111504224,-646.28,0.0001322,2]
[352449902,1739111504234,-634.574762,0.0001322,2]
[352449903,1739111504243,-566.93,0.0001322,2]
[352449904,1739111504252,-558.85169412,0.0001322,2]
[352449905,1739111504261,-586.39284,0.0001322,2]
[352449906,1739111504270,-993.58,0.0001322,2]
[352449907,1739111504280,-610.23,0.0001322,2]
[352449908,1739111504289,-500.0,0.0001322,2]
[352449909,1739111504299,-596.35,0.0001322,2]
[352449910,1739111504308,-618.07,0.0001322,2]
[352449911,1739111504318,-521.73,0.0001322,2]
[352449912,1739111504328,-511.97,0.0001322,2]
[352449913,1739111504337,-721.78,0.0001322,2]
[352449914,1739111504347,-765.52,0.0001322,2]
[352449915,1739111504356,-1295.36,0.0001322,2]
[352449916,1739111504366,-1458.2,0.0001322,2]
[352449917,1739111504377,-247.27538735,0.0001322,2]
[352449918,1739111504386,-648.67,0.0001322,2]
[352449919,1739111504395,-585.91,0.0001322,2]
[352449920,1739111504404,-803.01,0.0001322,2]
[352449921,1739111504414,-581.92,0.0001322,2]
[352449922,1739111504423,-526.62,0.0001322,2]
[352449923,1739111504432,-500.0,0.0001322,2]
[352449924,1739111504442,-500.0,0.0001322,2]
[352449925,1739111504451,-176.960047,0.00013221,2]
[352449926,1739111504460,-176.960056,0.00013221,2]
[352449927,1739111504470,-151.0,0.00013222,2]
[352449928,1739111504478,-244.571363,0.00013222,2]
[352449929,1739111504493,-151.0,0.00013222,2]
[352449930,1739111504502,-558.5,0.00013231,2]
[352449931,1739111504511,-1000.0,0.00013299,2]
[352449932,1739111504520,-852.46,0.00013356,2]
[352449933,1739111504530,-500.0,0.00013356,2]
[352449934,1739111504539,-500.0,0.00013356,2]
[352449935,1739111504549,-500.0,0.00013356,2]
[352449936,1739111504559,-555.35810398,0.00013356,2]
[352449937,1739111504569,-280.887604,0.00013356,2]
[352449938,1739111504579,-401.46107201,0.00013356,2]
[352449939,1739111504587,-500.0,0.00013356,2]
[352449940,1739111504597,-732.99,0.00013356,2]
[352449941,1739111504606,-682.96,0.00013356,2]
[352449942,1739111504615,-894.51,0.00013356,2]
[352449943,1739111504626,-815.69,0.00013356,2]
[352449944,1739111504635,-500.0,0.00013356,2]
[352449945,1739111504644,-581.55,0.00013356,2]
[352449946,1739111504654,-1254.78,0.00013356,2]
[352449947,1739111504663,-892.24,0.00013356,2]
[352449948,1739111504672,-548.43,0.00013356,2]
[352449949,1739111504681,-500.0,0.00013356,2]
[352449950,1739111504690,-500.0,0.00013356,2]
[352449951,1739111504700,-500.0,0.00013356,2]
[352449952,1739111504708,-870.56,0.00013356,2]
[352449953,1739111504718,-702.87,0.00013356,2]
[352449954,1739111504727,-811.17,0.00013356,2]
[352449955,1739111504736,-580.57,0.00013356,2]
[352449956,1739111504746,-516.0,0.00013356,2]
[352449957,1739111504755,-166.42024034,0.00013356,2]
[352449958,1739111504764,-795.24,0.00013356,2]
[352449959,1739111504773,-500.0,0.00013356,2]
[352449960,1739111504784,-881.68,0.00013356,2]
[352449961,1739111504793,-670.56,0.00013356,2]
[352449962,1739111504802,-500.0,0.00013356,2]
[352449963,1739111504812,-705.66,0.00013356,2]
[352449964,1739111504821,-1023.29,0.00013356,2]
[352449965,1739111504830,-640.81,0.00013356,2]
[352449966,1739111504839,-500.0,0.00013356,2]
[352449967,1739111504848,-500.0,0.00013356,2]
[352449968,1739111504857,-500.0,0.00013356,2]
[352449969,1739111504867,-630.98,0.00013356,2]
[352449970,1739111504876,-542.86,0.00013356,2]
[352449971,1739111504885,-654.61,0.00013356,2]
[352449972,1739111504895,-521.92,0.00013356,2]
[352449973,1739111504904,-150.02,0.00013356,2]
[352449974,1739111504914,-500.0,0.00013356,2]
[352449975,1739111504923,-519.41,0.00013356,2]
[352449976,1739111504933,-542.32,0.00013356,2]
[352449977,1739111504942,-572.6,0.00013356,2]
[352449978,1739111504952,-555.28,0.00013356,2]
[352449979,1739111504961,-436.64859516,0.00013356,2]
[352449980,1739111504971,-500.0,0.00013356,2]
[352449981,1739111504980,-500.0,0.00013356,2]
[352449982,1739111504989,-678.37,0.00013356,2]
[352449983,1739111505000,-500.0,0.00013356,2]
[352449984,1739111505009,-397.44972173,0.00013356,2]
[352449985,1739111505018,-595.16,0.00013356,2]
[352449986,1739111505028,-606.91,0.00013356,2]
[352449987,1739111505039,-569.4,0.00013356,2]
[352449988,1739111505048,-760.21,0.00013356,2]
[352449989,1739111505058,-500.0,0.00013356,2]
[352449990,1739111505067,-514.96,0.00013356,2]
[352449991,1739111505077,-737.84,0.00013357,2]
[352449992,1739111505087,-693.9123177,0.00013357,2]
[352449993,1739111505096,-545.78,0.00013357,2]
[352449994,1739111505106,-525.16,0.00013357,2]
[352449995,1739111505115,-564.38,0.00013357,2]
[352449996,1739111505124,-646.28,0.00013357,2]
[352449997,1739111505133,-634.574762,0.00013357,2]
[352449998,1739111505143,-566.93,0.00013357,2]
[352449999,1739111505152,-586.39284,0.00013357,2]
[352450000,1739111505162,-993.58,0.00013357,2]
[352450001,1739111505171,-610.23,0.00013357,2]
[352450002,1739111505181,-500.0,0.00013357,2]
[352450003,1739111505342,-596.35,0.00013357,2]
[352450004,1739111505352,-618.07,0.00013357,2]
[352450005,1739111505363,-521.73,0.00013357,2]
[352450006,1739111505372,-511.97,0.00013357,2]
[352450007,1739111505383,-721.78,0.00013357,2]
[352450008,1739111505392,-765.52,0.00013357,2]
[352450009,1739111505402,-1295.36,0.00013357,2]
[352450010,1739111505412,-1458.2,0.00013357,2]
[352450011,1739111505421,-648.67,0.00013357,2]
[352450012,1739111505431,-585.91,0.00013357,2]
[352450013,1739111505440,-803.01,0.00013357,2]
[352450014,1739111505451,-581.92,0.00013357,2]
[352450015,1739111505460,-526.62,0.00013357,2]
[352450016,1739111505470,-500.0,0.00013357,2]
[352450017,1739111505479,-500.0,0.00013357,2]
[352450018,1739111505493,-306.94383401,0.00013367,2]
[352450019,1739111505502,-500.0,0.00013424,2]
[352450020,1739111505511,-500.0,0.00013424,2]
[352450021,1739111505521,-500.0,0.00013424,2]
[352450022,1739111505531,-500.0,0.00013424,2]
[352450023,1739111505541,-500.0,0.00013424,2]
[352450024,1739111505550,-500.0,0.00013424,2]
[352450025,1739111505560,-500.0,0.00013424,2]
[352450026,1739111505571,-500.0,0.00013424,2]
[352450027,1739111505581,-237.78885584,0.00013424,2]
[352450028,1739111505591,-852.46,0.00013493,2]
[352450029,1739111505603,-500.0,0.00013493,2]
[352450030,1739111505613,-446.56856583,0.00013493,2]
[352450031,1739111505624,-500.0,0.00013493,2]
[352450032,1739111505634,-500.0,0.00013493,2]
[352450033,1739111505644,-732.99,0.00013493,2]
[352450034,1739111505655,-682.96,0.00013493,2]
[352450035,1739111505664,-894.51,0.00013493,2]
[352450036,1739111505674,-815.69,0.00013493,2]
[352450037,1739111505683,-500.0,0.00013493,2]
[352450038,1739111505693,-581.55,0.00013493,2]
[352450039,1739111505702,-1254.78,0.00013493,2]
[352450040,1739111505712,-892.24,0.00013493,2]
[352450041,1739111505721,-548.43,0.00013493,2]
[352450042,1739111505730,-500.0,0.00013493,2]
[352450043,1739111505740,-500.0,0.00013493,2]
[352450044,1739111505750,-500.0,0.00013493,2]
[352450045,1739111505760,-870.56,0.00013493,2]
[352450046,1739111505769,-702.87,0.00013493,2]
[352450047,1739111505779,-811.17,0.00013493,2]
[352450048,1739111505789,-580.57,0.00013493,2]
[352450049,1739111505799,-516.0,0.00013493,2]
[352450050,1739111505810,-795.24,0.00013493,2]
[352450051,1739111505819,-500.0,0.00013493,2]
[352450052,1739111505828,-881.68,0.00013493,2]
[352450053,1739111505838,-670.56,0.00013493,2]
[352450054,1739111505847,-500.0,0.00013493,2]
[352450055,1739111505857,-705.66,0.00013493,2]
[352450056,1739111505867,-1023.29,0.00013493,2]
[352450057,1739111505878,-640.81,0.00013493,2]
[352450058,1739111505888,-500.0,0.00013493,2]
[352450059,1739111505897,-500.0,0.00013493,2]
[352450060,1739111505907,-500.0,0.00013493,2]
[352450061,1739111505917,-630.98,0.00013493,2]
[352450062,1739111505927,-542.86,0.00013493,2]
[352450063,1739111505936,-654.61,0.00013493,2]
[352450064,1739111505947,-521.92,0.00013493,2]
[352450065,1739111505956,-500.0,0.00013493,2]
[352450066,1739111505966,-519.41,0.00013493,2]
[352450067,1739111505976,-542.32,0.00013493,2]
[352450068,1739111505987,-572.6,0.00013493,2]
[352450069,1739111505997,-555.28,0.00013493,2]
[352450070,1739111506006,-500.0,0.00013493,2]
[352450071,1739111506016,-500.0,0.00013493,2]
[352450072,1739111506026,-678.37,0.00013493,2]
[352450073,1739111506036,-500.0,0.00013493,2]
[352450074,1739111506045,-595.16,0.00013493,2]
[352450075,1739111506055,-606.91,0.00013493,2]
[352450076,1739111506066,-569.4,0.00013493,2]
[352450077,1739111506075,-760.21,0.00013493,2]
[352450078,1739111506085,-447.50032204,0.00013493,2]
[352450079,1739111506094,-514.96,0.00013493,2]
[352450080,1739111506104,-737.84,0.00013494,2]
[352450081,1739111506114,-545.78,0.00013494,2]
[352450082,1739111506123,-525.16,0.00013494,2]
[352450083,1739111506135,-564.38,0.00013494,2]
[352450084,1739111506144,-646.28,0.00013494,2]
[352450085,1739111506154,-634.574762,0.00013494,2]
[352450086,1739111506164,-566.93,0.00013494,2]
[352450087,1739111506174,-586.39284,0.00013494,2]
[352450088,1739111506183,-993.58,0.00013494,2]
[352450089,1739111506193,-610.23,0.00013494,2]
[352450090,1739111506202,-188.98573326,0.00013494,2]
[352450091,1739111506212,-596.35,0.00013494,2]
[352450092,1739111506222,-618.07,0.00013494,2]
[352450093,1739111506232,-521.73,0.00013494,2]
[352450094,1739111506242,-511.97,0.00013494,2]
[352450095,1739111506251,-721.78,0.00013494,2]
[352450096,1739111506261,-765.52,0.00013494,2]
[352450097,1739111506271,-1295.36,0.00013494,2]
[352450098,1739111506280,-1458.2,0.00013494,2]
[352450099,1739111506290,-648.67,0.00013494,2]
[352450100,1739111506299,-585.91,0.00013494,2]
[352450101,1739111506308,-803.01,0.00013494,2]
[352450102,1739111506318,-581.92,0.00013494,2]
[352450103,1739111506328,-526.62,0.00013494,2]
[352450104,1739111506338,-500.0,0.00013494,2]
[352450105,1739111506347,-500.0,0.00013494,2]
[352450106,1739111506357,-719.28095,0.00013495,2]
[352450107,1739111506366,-719.28095,0.00013495,2]
[352450108,1739111506375,-166.333187,0.00013495,2]
[352450109,1739111506385,-166.333187,0.00013495,2]
[352450110,1739111506395,-1000.0,0.000135,2]
[352450111,1739111506404,-286.86821,0.00013561,2]
[352450112,1739111506413,-286.86821,0.00013561,2]
[352450113,1739111506423,-691.552167,0.00013561,2]
[352450114,1739111506433,-691.552167,0.00013561,2]
[352450115,1739111506442,-151.0,0.00013561,2]
[352450116,1739111506452,-151.0,0.00013561,2]
[352450117,1739111506462,-382.60354011,0.00013565,2]
[352450118,1739111506472,-2000.0,0.0001357,4]
[352450119,1739111506484,-5555.0,0.000136,5]
[352450120,1739111506495,-852.46,0.0001363,2]
[352450121,1739111506505,-221.10620723,0.0001363,2]
[352450122,1739111506515,-500.0,0.0001363,2]
[352450123,1739111506525,-586.01035508,0.0001363,2]
[352450124,1739111506535,-732.99,0.0001363,2]
[352450125,1739111506544,-682.96,0.0001363,2]
[352450126,1739111506556,-894.51,0.0001363,2]
[352450127,1739111506565,-815.69,0.0001363,2]
[352450128,1739111506576,-208.42000095,0.0001363,2]
[352450129,1739111506585,-581.55,0.0001363,2]
[352450130,1739111506594,-1254.78,0.0001363,2]
[352450131,1739111506604,-892.24,0.0001363,2]
[352450132,1739111506614,-548.43,0.0001363,2]
[352450133,1739111506623,-500.0,0.0001363,2]
[352450134,1739111506634,-359.81161337,0.0001363,2]
[352450135,1739111506643,-500.0,0.0001363,2]
[352450136,1739111506653,-870.56,0.0001363,2]
[352450137,1739111506662,-702.87,0.0001363,2]
[352450138,1739111506671,-811.17,0.0001363,2]
[352450139,1739111506680,-580.57,0.0001363,2]
[352450140,1739111506690,-516.0,0.0001363,2]
[352450141,1739111506698,-795.24,0.0001363,2]
[352450142,1739111506707,-190.28834613,0.0001363,2]
[352450143,1739111506719,-881.68,0.0001363,2]
[352450144,1739111506730,-670.56,0.0001363,2]
[352450145,1739111506741,-385.07448198,0.0001363,2]
[352450146,1739111506750,-705.66,0.0001363,2]
[352450147,1739111506760,-1023.29,0.0001363,2]
[352450148,1739111506768,-640.81,0.0001363,2]
[352450149,1739111506779,-243.7152958,0.0001363,2]
[352450150,1739111506788,-500.0,0.0001363,2]
[352450151,1739111506797,-176.37304071,0.0001363,2]
[352450152,1739111506807,-630.98,0.0001363,2]
[352450153,1739111506816,-542.86,0.0001363,2]
[352450154,1739111506825,-654.61,0.0001363,2]
[352450155,1739111506834,-521.92,0.0001363,2]
[352450156,1739111506843,-500.0,0.0001363,2]
[352450157,1739111506852,-519.41,0.0001363,2]
[352450158,1739111506861,-542.32,0.0001363,2]
[352450159,1739111506871,-572.6,0.0001363,2]
[352450160,1739111506880,-555.28,0.0001363,2]
[352450161,1739111506888,-403.8508423,0.0001363,2]
[352450162,1739111506898,-417.22476895,0.0001363,2]
[352450163,1739111506907,-678.37,0.0001363,2]
[352450164,1739111506916,-500.0,0.0001363,2]
[352450165,1739111506926,-595.16,0.0001363,2]
[352450166,1739111506935,-606.91,0.0001363,2]
[352450167,1739111506944,-569.4,0.0001363,2]
[352450168,1739111506954,-760.21,0.0001363,2]
[352450169,1739111506964,-514.96,0.0001363,2]
[352450170,1739111506973,-737.84,0.00013631,2]
[352450171,1739111506983,-545.78,0.00013631,2]
[352450172,1739111506992,-525.16,0.00013631,2]
[352450173,1739111507002,-564.38,0.00013631,2]
[352450174,1739111507011,-646.28,0.00013631,2]
[352450175,1739111507020,-634.574762,0.00013631,2]
[352450176,1739111507030,-566.93,0.00013631,2]
[352450177,1739111507040,-586.39284,0.00013631,2]
[352450178,1739111507049,-993.58,0.00013631,2]
[352450179,1739111507059,-610.23,0.00013631,2]
[352450180,1739111507068,-596.35,0.00013631,2]
[352450181,1739111507077,-618.07,0.00013631,2]
[352450182,1739111507086,-521.73,0.00013631,2]
[352450183,1739111507096,-511.97,0.00013631,2]
[352450184,1739111507105,-721.78,0.00013631,2]
[352450185,1739111507114,-765.52,0.00013631,2]
[352450186,1739111507126,-1295.36,0.00013631,2]
[352450187,1739111507136,-1458.2,0.00013631,2]
[352450188,1739111507146,-648.67,0.00013631,2]
[352450189,1739111507155,-585.91,0.00013631,2]
[352450190,1739111507165,-803.01,0.00013631,2]
[352450191,1739111507175,-581.92,0.00013631,2]
[352450192,1739111507184,-526.62,0.00013631,2]
[352450193,1739111507193,-231.03680259,0.00013631,2]
[352450194,1739111507203,-500.0,0.00013631,2]
[352450195,1739111507212,-151.0,0.00013632,2]
[352450196,1739111507221,-151.0,0.00013632,2]
[352450197,1739111507230,-151.0,0.00013632,2]
[352450198,1739111507240,-155.378109,0.00013632,2]
[352450199,1739111507250,-155.378104,0.00013632,2]
[352450200,1739111507259,-364.840937,0.00013632,2]
[352450201,1739111507268,-364.840945,0.00013632,2]
[352450202,1739111507277,-476.073194,0.00013632,2]
[352450203,1739111507286,-476.073191,0.00013632,2]
[352450204,1739111507295,-338.594007,0.00013632,2]
[352450205,1739111507304,-338.59401,0.00013632,2]
[352450206,1739111507313,-162.02358,0.00013633,2]
[352450207,1739111507322,-162.023577,0.00013633,2]
[352450208,1739111507331,-307.705384,0.00013633,2]
[352450209,1739111507343,-307.705384,0.00013633,2]
[352450210,1739111507354,-497.355562,0.00013633,2]
[352450211,1739111507365,-497.355562,0.00013633,2]
[352450212,1739111507374,-230.558823,0.00013633,2]
[352450213,1739111507384,-230.558823,0.00013633,2]
[352450214,1739111507394,-154.12351,0.00013689,2]
[352450215,1739111507403,-154.12351,0.00013689,2]
[352450216,1739111507412,-209.614751,0.00013698,2]
[352450217,1739111507421,-209.61475748,0.00013698,2]
[352450218,1739111507430,-151.0,0.00013698,2]
[352450219,1739111507439,-842.311692,0.00013698,2]
[352450220,1739111507448,-842.311693,0.00013698,2]
[352450221,1739111507457,-151.0,0.00013698,2]
[352450222,1739111507466,-303.227568,0.00013698,2]
[352450223,1739111507474,-303.227576,0.00013698,2]
[352450224,1739111507486,-151.0,0.00013698,2]
[352450225,1739111507495,-244.571363,0.00013698,2]
[352450226,1739111507503,-216.223064,0.00013698,2]
[352450227,1739111507512,-290.94,0.00013698,2]
[352450228,1739111507521,-290.94,0.00013698,2]
[352450229,1739111507531,-252.955699,0.00013698,2]
[352450230,1739111507540,-252.955699,0.00013698,2]
[352450231,1739111507549,-151.0,0.00013698,2]
[352450232,1739111507559,-151.0,0.00013698,2]
[352450233,1739111507568,-663.514568,0.00013698,2]
[352450234,1739111507580,-663.514568,0.00013698,2]
[352450235,1739111507590,-895.449831,0.00013698,2]
[352450236,1739111507599,-895.449831,0.00013698,2]
[352450237,1739111507608,-500.0,0.00013698,2]
[352450238,1739111507617,-369.81779327,0.00013698,2]
[352450239,1739111507626,-373.024451,0.00013698,2]
[352450240,1739111507636,-373.024447,0.00013698,2]
[352450241,1739111507645,-1000.0,0.00013698,2]
[352450242,1739111507655,-523.64736339,0.00013698,2]
[352450243,1739111507666,-519.50402322,0.00013698,2]
[352450244,1739111507675,-3073.56,0.00013698,2]
[352450245,1739111507684,-3073.56,0.00013698,2]
[352450246,1739111507694,-2142.86811298,0.00013698,2]
[352450247,1739111507849,-500.0,0.00012534,2]
[352450248,1739111507860,-930.69188702,0.00013698,2]
[352450249,1739111507870,-1775.67370519,0.00013698,2]
[352450250,1739111508064,-500.0,0.00010136,2]
[352450251,1739111508075,-524.5,0.00011165,2]
[352450252,1739111508085,-1297.88629481,0.00013698,2]
[352450253,1739111508096,-3038.81076145,0.00013698,2]
[352450254,1739111508338,-500.0,9.999e-05,2]
[352450255,1739111508348,-500.0,9.999e-05,2]
[352450256,1739111508357,-569.0,0.00010782,2]
[352450257,1739111508367,-500.0,0.0001089,2]
[352450258,1739111508377,-524.5,0.00011302,2]
[352450259,1739111508389,-524.5,0.00011439,2]
[352450260,1739111508400,-524.5,0.00011576,2]
[352450261,1739111508411,-524.5,0.00011713,2]
[352450262,1739111508421,-524.5,0.0001185,2]
[352450263,1739111508431,-524.5,0.00011987,2]
[352450264,1739111508441,-524.5,0.00012124,2]
[352450265,1739111508452,-500.0,0.00012671,2]
[352450266,1739111508462,-500.0,0.00012808,2]
[352450267,1739111508472,-500.0,0.00012945,2]
[352450268,1739111508482,-500.0,0.00013082,2]
[352450269,1739111508496,-500.0,0.00013219,2]
[352450270,1739111508507,-500.0,0.00013356,2]
[352450271,1739111508516,-500.0,0.00013493,2]
[352450272,1739111508526,-500.0,0.0001363,2]
[352450273,1739111508535,-34.74923855,0.00013698,2]
[352450274,1739111508546,-3073.56,0.00013698,2]
[352450275,1739111508555,-466.59076059,0.00013698,2]
[352450276,1739111508568,-2606.96923941,0.00013698,2]
[352450277,1739111508578,-3073.56,0.00013698,2]
[352450278,1739111508588,-1760.87076059,0.00013698,2]
[352450279,1739111508599,-1312.68923941,0.00013698,2]
[352450280,1739111508609,-3073.56,0.00013698,2]
[352450281,1739111508619,-3073.56,0.00013698,2]
[352450282,1739111508628,-943.79937279,0.00013698,2]
[352450283,1739111508661,-524.5,0.00012261,2]
[352450284,1739111508671,-292.6986,0.00013698,2]
[352450285,1739111508683,-300.33724751,0.00013698,2]
[352450286,1739111508695,-1536.7247797,0.00013698,2]
[352450287,1739111508704,-3073.56,0.00013698,2]
[352450288,1739111508714,-3073.56,0.00013698,2]
[352450289,1739111508724,-3073.56,0.00013698,2]
[352450290,1739111508733,-3073.56,0.00013698,2]
[352450291,1739111508742,-3073.56,0.00013698,2]
[352450292,1739111508752,-3073.56,0.00013698,2]
[352450293,1739111508761,-3073.56,0.00013698,2]
[352450294,1739111508771,-3073.56,0.00013698,2]
[352450295,1739111508780,-3073.56,0.00013698,2]
[352450296,1739111508790,-405.4202203,0.00013698,2]
[352450297,1739111508801,-258.4,0.00013698,2]
[352450298,1739111508813,-2409.7397797,0.00013698,2]
[352450299,1739111508822,-3073.56,0.00013698,2]
[352450300,1739111508831,-85.73635809,0.00013698,2]
[352450301,1739111508849,-3433.82,0.00013698,2]
[352450302,1739111508861,-1260.66036808,0.00013698,2]
[352450303,1739111508870,-500.0,0.00013699,2]
[352450304,1739111508882,-500.0,0.00013699,2]
[352450305,1739111508891,-500.0,0.00013699,2]
[352450306,1739111508900,-500.0,0.00013699,2]
[352450307,1739111508910,-500.0,0.00013699,2]
[352450308,1739111508920,-500.0,0.00013699,2]
[352450309,1739111508929,-500.0,0.00013699,2]
[352450310,1739111508939,-500.0,0.00013699,2]
[352450311,1739111508949,-500.0,0.00013699,2]
[352450312,1739111508958,-500.0,0.00013699,2]
[352450313,1739111508968,-500.0,0.00013699,2]
[352450314,1739111508979,-500.0,0.00013699,2]
[352450315,1739111508988,-500.0,0.00013699,2]
[352450316,1739111508998,-5076.48,0.00013699,2]
[352450317,1739111509007,-1236.63727852,0.00013699,2]
[352450318,1739111509029,-524.5,0.00012398,2]
[352450319,1739111509038,-302.29727951,0.00013699,2]
[352450320,1739111509050,-3537.54544197,0.00013699,2]
[352450321,1739111509059,-5076.48,0.00013699,2]
[352450322,1739111509069,-5076.48,0.00013699,2]
[352450323,1739111509078,-5076.48,0.00013699,2]
[352450324,1739111509087,-5076.48,0.00013699,2]
[352450325,1739111509097,-5076.48,0.00013699,2]
[352450326,1739111509106,-5076.48,0.00013699,2]
[352450327,1739111509116,-5076.48,0.00013699,2]
[352450328,1739111509126,-1152.88949713,0.00013699,2]
[352450329,1739111509429,-500.0,9.999e-05,2]
[352450330,1739111509438,-500.0,0.00010616,2]
[352450331,1739111509448,-500.0,0.00010753,2]
[352450332,1739111509457,-310.0,0.0001089,2]
[352450333,1739111509467,-190.0,0.0001089,2]
[352450334,1739111509476,-500.0,0.0001089,2]
[352450335,1739111509488,-500.0,0.00011027,2]
[352450336,1739111509497,-500.0,0.00011164,2]
[352450337,1739111509506,-524.5,0.00012535,2]
[352450338,1739111509515,-524.5,0.00012672,2]
[352450339,1739111509525,-524.5,0.00012809,2]